[Event "SixDays Budapest January-GM 2023"]
[Site "Budapest"]
[Date "2023.01.25"]
[Round "5.2"]
[White "Ghazarian, Kirk"]
[Black "Nagy, Gabor"]
[Result "1/2-1/2"]
[ECO "A40"]
[WhiteElo "2466"]
[BlackElo "2499"]
[Annotator "TA"]
[PlyCount "51"]
[EventDate "2023.01.23"]
[EventType "tourn"]
[EventCountry "HUN"]
[SourceTitle "playchess.com"]
[Source "ChessBase"]
[SourceQuality "1"]
[TimeControl "5400+30"]

{[%evp 14,51,15,0,-6,-5,28,15,31,30,52,51,54,48,54,59,39,46,84,85,94,67,120,106,94,95,108,62,50,21,21,0,0,0,0,0,0,0,0,0]} 1. d4 {[%emt 0:00:07]} Nf6 {[%emt 0:00:26]} 2. c4 {[%emt 0:00:15]} e6 {[%emt 0:00:12]} 3. g3 {[%emt 0:01:03]} Bb4+ {[%emt 0:00:20]} 4. Nd2 {[%emt 0:00:44]} d5 {[%emt 0:02:13]} 5. Bg2 {[%emt 0:00:10]} O-O {[%emt 0:00:23]} 6. Ngf3 {[%emt 0:00:17][%cal Bg1f3,Bf3e5,Be5d3][%mdl 32]} b6 {[%emt 0:00:37]} 7. O-O {[%emt 0:00:13]} Bb7 {[%emt 0:00:08]} 8. Ne5 {[%emt 0:00:22]} a5 {[%emt 0:00:38] is the new trend. E16: Queen's Indian: 4 g3 Bb7 5 Bg2 Bb4+.} 9. Qc2 {[%emt 0:00:31]} Bd6 {[%emt 0:05:49]} (9... c5 $5 {[%cal Rc5d4]}) 10. cxd5 {[%emt 0:13:15]} exd5 {[%emt 0:00:24]} 11. Ndc4 {[%emt 0:00:31] [#]} Ne4 $146 {[%emt 0:01:55]} ({Predecessor:} 11... Qc8 12. Ne3 Re8 13. Nf5 Nbd7 14. Bh3 Qd8 15. Nc6 Bxc6 16. Qxc6 Rxe2 17. Ne3 Bb4 {1-0 Petrov,N (2571)-Maltsevskaya,A (2327) Cheliabinsk Variant Gp-A 2021 (2)}) 12. Nxd6 {[%emt 0:03:50]} cxd6 {[%emt 0:00:12]} 13. Nd3 {[%emt 0:03:21]} Re8 {[%emt 0:00:21]} 14. Be3 {[%emt 0:01:50]} Nc6 {[%emt 0:04:58][%cal Bb8c6,Bc6e7,Be7f5,Bf5d4,Bd4e2][%mdl 32]} 15. Rac1 {[%emt 0:01:50]} Ne7 {[%emt 0:04:02]} 16. Qc7 {[%emt 0:03:52]} Ba6 {[%emt 0:00:27]} 17. g4 {[%emt 0:17:06][%cal Bg3g4,Bg4h5][%mdl 32]} (17. Qxd8 {simplifies} Raxd8 18. Rc7 h6 19. Rfc1) 17... h5 {[%emt 0:02:59]} 18. gxh5 {[%emt 0:05:37] White is more active.} Nf5 {[%emt 0:02:01] [#]} 19. Qxd8 $1 {[%emt 0:00:25]} Raxd8 {[%emt 0:00:10]} 20. Rc6 {[%emt 0:01:04]} ({Better is} 20. Nf4 $16) 20... Nd2 $14 {[%emt 0:05:37][%mdl 64] Deflection} 21. Rd1 {[%emt 0:06:17]} (21. Bxd2 $5 Nxd4 22. Nb4 (22. Rxb6 Nxe2+ 23. Kh1 Bxd3 $14) 22... axb4 23. Rxb6 Bxe2 24. Re1 $14) 21... Nc4 {[%emt 0:01:12] The position is equal.} 22. Bg5 {[%emt 0:01:03]} (22. Bxd5 $2 {loses.} Ncxe3 23. fxe3 Nxe3 24. Rxb6 Nxd1 $19) (22. Nf4 $5 {[%cal Re3c1]} Bb5 23. Rc7 Nfxe3 24. fxe3 Nxe3 25. Rd2 $11) 22... Nxd4 {[%emt 0:01:57]} 23. Rc7 {[%emt 0:02:36]} Nxe2+ {[%emt 0:02:13]} 24. Kh1 {[%emt 0:00:14]} Rc8 {[%emt 0:00:58]} 25. Ra7 {[%emt 0:01:02]} Bb5 {[%emt 0:00:16]} 26. Bxd5 {[%emt 0:03:53] Weighted Error Value: White=0.08 (flawless) /Black=0.12 (very precise)} 1/2-1/2

[Event "SixDays Budapest January-GM 2023"]
[Site "Budapest"]
[Date "2023.01.25"]
[Round "5.3"]
[White "Kozak, Adam"]
[Black "Chen, Qi b"]
[Result "1/2-1/2"]
[ECO "D85"]
[WhiteElo "2558"]
[BlackElo "2484"]
[Annotator "TA"]
[PlyCount "86"]
[EventDate "2023.01.23"]
[EventType "tourn"]
[EventCountry "HUN"]
[SourceTitle "playchess.com"]
[Source "ChessBase"]
[SourceQuality "1"]
[TimeControl "5400+30"]

{[%evp 19,86,8,15,16,10,8,29,19,30,26,103,57,63,28,28,27,28,28,28,28,34,27,24,23,25,19,31,7,29,19,43,19,27,19,27,24,27,0,43,0,27,16,16,16,20,16,20,0,0,0,0,0,0,0,0,0,0,0,0,0,6,0,0,0,0,0,0,0,0]} 1. d4 {[%emt 0:02:32]} Nf6 {[%emt 0:00:11]} 2. c4 {[%emt 0:00:08]} g6 {[%emt 0:00:28]} 3. Nc3 {[%emt 0:02:10]} d5 {[%emt 0:00:23]} 4. cxd5 {[%emt 0:00:09]} Nxd5 {[%emt 0:00:07]} 5. g3 {[%emt 0:11:18]} Bg7 {[%emt 0:02:22]} 6. Bg2 {[%emt 0:00:40]} Nxc3 {[%emt 0:01:48]} 7. bxc3 {[%emt 0:00:09]} c5 {[%emt 0:00:53]} 8. Nf3 {[%emt 0:04:41]} Nc6 {[%emt 0:04:45]} 9. e3 {[%emt 0:13:34] The old main line.} O-O {[%emt 0:03:09]} 10. O-O {[%emt 0:00:15]} Qc7 {[%emt 0:10:02]} 11. Ba3 {[%emt 0:04:56] D75: Fianchetto Grünfeld: Main Line with 7...c5.} b6 {[%emt 0:03:57]} 12. dxc5 {[%emt 0:16:14]} Ba6 {[%emt 0:14:57] [#]} 13. Nd4 $1 {[%emt 0:01:35] White has an edge.} Bxf1 {[%emt 0:04:01]} 14. Qxf1 {[%emt 0:02:30] [#]} Ne5 $146 {[%emt 0:10:15]} ({Predecessor:} 14... Nxd4 15. cxd4 Rad8 16. c6 Rfe8 17. Rd1 e6 18. Qa6 Bf8 19. Rd3 e5 20. d5 e4 {½-½ Fernandez Cazorla,A (2218)-Subirats Ruiz,S (2184) Catalunya-chT 2014 (1.1)}) 15. Bxa8 {[%emt 0:04:09]} ({White should try} 15. Nb5 $16 Qd7 16. Rd1) 15... Rxa8 $14 {[%emt 0:00:05]} 16. cxb6 {[%emt 0:00:10]} axb6 {[%emt 0:00:33]} 17. Bb4 {[%emt 0:00:18]} e6 {[%emt 0:06:58]} 18. a3 {[%emt 0:03:28]} h5 {[%emt 0:02:41]} 19. Rd1 {[%emt 0:04:51]} Bf8 {[%emt 0:04:05]} 20. Qg2 {[%emt 0:11:59]} Rd8 {[%emt 0:00:51]} 21. Qe4 {[%emt 0:01:41]} Bg7 {[%emt 0:02:05]} 22. Rf1 {[%emt 0:08:01]} Rd5 {[%emt 0:02:00]} 23. Nf3 {[%emt 0:04:03]} Nc4 {[%emt 0:06:59]} 24. h4 {[%emt 0:02:22]} Bf6 {[%emt 0:08:45]} 25. Re1 {[%emt 0:00:26]} Kg7 {[%emt 0:01:02]} 26. Kg2 {[%emt 0:00:39]} Nb2 {[%emt 0:04:15]} 27. Re2 {[%emt 0:00:28]} Nc4 {[%emt 0:01:01]} 28. Re1 {[%emt 0:00:21]} Nb2 {[%emt 0:00:04]} 29. Re2 {[%emt 0:00:09]} Nc4 {[%emt 0:00:03]} 30. Qc2 {[%emt 0:00:58]} Qc6 {[%emt 0:01:02] The position is equal.} 31. e4 {[%emt 0:00:33]} Rd7 {[%emt 0:00:24]} 32. Re1 {[%emt 0:00:30]} e5 {[%emt 0:01:02]} 33. Qe2 {[%emt 0:00:29]} b5 {[%emt 0:01:41]} 34. Rc1 {[%emt 0:00:31]} Be7 {[%emt 0:00:33]} 35. Re1 {[%emt 0:00:31]} f6 {[%emt 0:01:32]} 36. Ra1 {[%emt 0:00:30][%cal Be1a1,Ba1d1,Bd1d5][%mdl 32]} Ra7 {[%emt 0:00:39]} 37. Rd1 {[%emt 0:00:28]} Nxa3 {[%emt 0:00:44]} 38. Rd5 {[%emt 0:00:32]} Nc4 {[%emt 0:01:04]} 39. Qd3 {[%emt 0:00:29]} Rb7 {[%emt 0:01:04]} 40. Kg1 {[%emt 0:00:31]} Nb2 {[%emt 0:00:37]} 41. Qd2 {[%emt 0:00:23]} Nc4 {[%emt 0:00:04]} 42. Qd3 {[%emt 0:00:02]} Nb2 {[%emt 0:00:03]} 43. Qd2 {[%emt 0:01:05]} Nc4 {[%emt 0:00:02] Weighted Error Value: White=0.09 (flawless) /Black=0.07 (flawless)} 1/2-1/2

[Event "SixDays Budapest January-GM 2023"]
[Site "Budapest"]
[Date "2023.01.25"]
[Round "5.4"]
[White "Lucas, Arthur"]
[Black "Berczes, David"]
[Result "1/2-1/2"]
[ECO "C55"]
[WhiteElo "2412"]
[BlackElo "2436"]
[Annotator "TA"]
[PlyCount "52"]
[EventDate "2023.01.23"]
[EventType "tourn"]
[EventCountry "HUN"]
[SourceTitle "playchess.com"]
[Source "ChessBase"]
[SourceQuality "1"]
[TimeControl "5400+30"]

{[%evp 11,52,22,18,11,12,0,-12,-20,-20,-20,-29,-21,-30,-17,-15,-25,-17,-49,0,0,22,-45,-29,-20,-28,-39,-37,-39,-19,-35,-21,-34,-34,-34,-27,-35,-35,-35,-34,-65,-35,-32,0]} 1. e4 {[%emt 0:00:05]} e5 {[%emt 0:16:02]} 2. Nf3 {[%emt 0:00:23]} Nc6 {[%emt 0:00:33]} 3. Bc4 {[%emt 0:00:50]} Nf6 {[%emt 0:00:58]} 4. d4 {[%emt 0:01:32]} exd4 {[%emt 0:01:06]} 5. e5 {[%emt 0:00:11]} Ne4 {[%emt 0:01:19]} 6. Qe2 {[%emt 0:02:25]} Nc5 {[%emt 0:00:54]} (6... Bb4+ 7. Kf1 $16) 7. O-O {[%emt 0:00:51][%mdl 1024] White has compensation. C56: Two Knights: 4 d4 exd4 5 0-0 Nxe4.} Ne6 $1 {[%emt 0:00:40][%mdl 4] now scores much better than the old 7...Be7.} 8. Rd1 {[%emt 0:03:40]} d5 {[%emt 0:04:01]} 9. Bb5 {[%emt 0:09:41][%cal Oc2c3] The position is equal.} Bc5 {[%emt 0:17:48]} 10. c3 {[%emt 0:01:56]} O-O {[%emt 0:05:09]} 11. Bxc6 {[%emt 0:00:47][%cal Rc3d4] [#]} d3 $146 {[%emt 0:03:19]} ({Predecessor:} 11... bxc6 12. Nxd4 f6 13. Be3 Bxd4 14. cxd4 fxe5 15. dxe5 c5 16. f3 d4 17. Bf2 Nf4 {0-1 Yip,C (2418)-Khanin,S (2517) Philadelphia int op 15th 2022 (3)}) 12. Qxd3 {[%emt 0:00:12]} bxc6 {[%emt 0:00:04]} 13. Be3 {[%emt 0:02:56]} (13. Nd4 {with more complications.} Qh4 14. Be3 Nf4 15. Bxf4 Qxf4 16. b4) 13... Bb6 {[%emt 0:08:42]} 14. Nbd2 {[%emt 0:23:23]} f6 {[%emt 0:06:22]} (14... c5 $15) 15. Re1 $11 {[%emt 0:06:37]} f5 {[%emt 0:06:12][%cal Od5d4]} 16. Bxb6 {[%emt 0:04:05]} (16. b4 $11) 16... axb6 $15 {[%emt 0:06:03]} 17. Nd4 {[%emt 0:00:35]} c5 {[%emt 0:01:20]} 18. Nxe6 {[%emt 0:00:55]} (18. Nxf5 $2 {is the wrong capture.} Nf4 $19) 18... Bxe6 {[%emt 0:00:04]} 19. f4 {[%emt 0:04:03]} Qh4 {[%emt 0:05:05]} 20. Rf1 {[%emt 0:05:40]} Qe7 {[%emt 0:10:14]} 21. a3 {[%emt 0:01:31]} Rfd8 {[%emt 0:01:24]} 22. Nf3 {[%emt 0:03:03]} h6 {[%emt 0:00:06]} 23. Rad1 {[%emt 0:02:54]} Ra4 {[%emt 0:01:10] Black is slightly better.} 24. g3 {[%emt 0:01:33]} Qd7 {[%emt 0:02:53]} 25. Qc2 {[%emt 0:02:31]} Raa8 {[%emt 0:00:59]} (25... d4 $5 {[%cal Rd4d3]}) 26. Rd2 {[%emt 0:01:23]} Qf7 {[%emt 0:00:26] Weighted Error Value: White=0.12 (very precise) /Black=0.08 (flawless)} 1/2-1/2

[Event "SixDays Budapest January-GM 2023"]
[Site "Budapest"]
[Date "2023.01.25"]
[Round "5.5"]
[White "Can, Isik"]
[Black "Olsen, Filip Boe"]
[Result "1/2-1/2"]
[ECO "B15"]
[WhiteElo "2488"]
[BlackElo "2428"]
[Annotator "TA"]
[PlyCount "80"]
[EventDate "2023.01.23"]
[EventType "tourn"]
[EventCountry "HUN"]
[SourceTitle "playchess.com"]
[Source "ChessBase"]
[SourceQuality "1"]
[TimeControl "5400+30"]

{[%evp 14,80,42,37,31,32,48,38,43,31,39,33,48,36,29,46,35,13,33,-24,-22,-17,10,0,8,24,79,72,90,68,62,76,83,69,85,66,84,23,12,31,8,0,0,0,0,-7,0,0,0,-6,0,0,0,-332,-322,-300,-28,-28,-28,-28,-28,-28,-24,-48,-58,-118,0,0,0]} 1. e4 {[%emt 0:00:04]} c6 {[%emt 0:02:17]} 2. d4 {[%emt 0:00:03]} d5 {[%emt 0:00:19]} 3. Nd2 {[%emt 0:00:03]} dxe4 {[%emt 0:00:12]} 4. Nxe4 {[%emt 0:00:04]} Nf6 {[%emt 0:00:12]} 5. Nxf6+ {[%emt 0:00:06]} exf6 {[%emt 0:00:10]} 6. c3 {[%emt 0:00:08]} Bd6 {[%emt 0:00:27]} 7. Bd3 {[%emt 0:00:08]} O-O {[%emt 0:00:19]} 8. Qc2 {[%emt 0:00:03] Active counter play!} Re8+ {[%emt 0:00:15] B15: Caro-Kann: 3 Nc3: 3...g6 and 3...dxe4 4 Nxe4 Nf6 5 Nxf6+ exf6.} 9. Ne2 {[%emt 0:00:04]} h5 {[%emt 0:00:21]} 10. O-O {[%emt 0:00:08]} h4 {[%emt 0:00:18] White is slightly better.} 11. h3 {[%emt 0:00:06]} Nd7 {[%emt 0:00:20]} 12. Be3 {[%emt 0:01:09]} Nf8 {[%emt 0:00:30]} 13. Rad1 {[%emt 0:02:08]} Be6 {[%emt 0:00:54]} 14. c4 {[%emt 0:08:05]} Rc8 {[%emt 0:00:29] [#]} 15. Bc1 $146 {[%emt 0:15:37]} ({Predecessor:} 15. Rfe1 Bb8 16. b3 g6 17. Kf1 Kg7 18. Ng1 Qd7 19. Be4 Nh7 20. Qd2 Rcd8 21. d5 cxd5 22. Bxd5 Bxd5 23. Qxd5 Qxd5 24. Rxd5 Rxd5 25. cxd5 Rd8 {½-½ Solak,D (2594)-Grandelius,N (2651) Online Olym Div2 D rapid 2020 (7.1)}) 15... g6 {[%emt 0:03:20]} 16. f4 {[%emt 0:03:05]} ({White should try} 16. Be3 $14) 16... f5 $1 $11 {[%emt 0:01:22]} 17. Nc3 {[%emt 0:00:30]} Be7 {[%emt 0:15:44]} 18. Qf2 {[%emt 0:01:09]} Bf6 {[%emt 0:00:30]} 19. Be3 {[%emt 0:02:09][%cal Od4d5]} a6 {[%emt 0:12:54] [#]} (19... Qd6 $11) 20. d5 $1 $16 {[%emt 0:20:56]} cxd5 {[%emt 0:08:33]} 21. cxd5 {[%emt 0:00:14]} Bd7 {[%emt 0:01:07]} 22. Bb6 $1 {[%emt 0:12:44]} Qe7 {[%emt 0:00:33] [#]} 23. d6 $1 {[%emt 0:00:04]} Qe6 {[%emt 0:07:35]} 24. Rfe1 {[%emt 0:09:41]} Qxd6 {[%emt 0:00:30]} 25. Rxe8 {[%emt 0:00:17]} (25. Be2 $1 $16 Qb8 26. Nd5) 25... Rxe8 $11 {[%emt 0:00:59] [#]} (25... Bxe8 $2 26. Bxf5 $18) 26. Bxf5 $1 {[%emt 0:02:01][%mdl 64] Discovered Attack} Qc6 $132 {[%emt 0:01:04][%mdl 2048] Black is not keeping still} 27. Bxd7 {[%emt 0:00:19]} Nxd7 {[%emt 0:00:04]} 28. Bd4 {[%emt 0:00:04]} b5 {[%emt 0:10:52] aiming for ...b4.} 29. a3 {[%emt 0:03:29]} a5 {[%emt 0:01:29]} 30. Bxf6 {[%emt 0:05:39]} Nxf6 {[%emt 0:00:21]} 31. Qd4 {[%emt 0:00:03]} Ne4 {[%emt 0:04:21]} 32. Nd5 {[%emt 0:02:11]} Re6 {[%emt 0:03:25]} 33. Re1 $2 {[%emt 0:04:43][%mdl 8192] [#]} (33. b4 $11) 33... Ng3 $1 $19 {[%emt 0:05:11]} 34. Ne3 {[%emt 0:02:00]} Nf5 $2 {[%emt 0:03:32]} ({Better is} 34... Qc7 $19 {And now ...Re4 would win.} 35. Qd1 Qb6) 35. Nxf5 $1 $11 {[%emt 0:01:01][%csl Gf5][%cal Rd4g7]} Rxe1+ {[%emt 0:01:00]} 36. Kf2 {[%emt 0:00:01][%csl Gf5][%cal Rd4g7] The board is on fire.} gxf5 {[%emt 0:01:23]} 37. Kxe1 {[%emt 0:00:01]} Qxg2 {[%emt 0:00:28] Hoping for ...Qh1+. KQ-KQ} 38. Qd8+ {[%emt 0:00:15]} Kg7 {[%emt 0:00:12] Strongly threatening ...Qe4+.} 39. Qxh4 {[%emt 0:00:20] [#]} (39. Qd4+ $15 f6 40. Qa7+ Kh6 41. Qb8 Qe4+ 42. Kd2) 39... Qxb2 {[%emt 0:00:47]} (39... f6 $1 $17 40. Qf2 Qxh3) 40. Qg5+ {[%emt 0:00:05]} Kf8 {[%emt 0:00:35] Weighted Error Value: White=0.23 (precise) /Black=0.25 (precise)} 1/2-1/2

[Event "SixDays Budapest January-GM 2023"]
[Site "Budapest"]
[Date "2023.01.26"]
[Round "6.1"]
[White "Pajeken, Jakob Leon"]
[Black "Olsen, Filip Boe"]
[Result "1-0"]
[ECO "B12"]
[WhiteElo "2449"]
[BlackElo "2428"]
[Annotator "TA"]
[PlyCount "81"]
[EventDate "2023.01.23"]
[EventType "tourn"]
[EventCountry "HUN"]
[SourceTitle "playchess.com"]
[Source "ChessBase"]
[SourceQuality "1"]
[TimeControl "5400+30"]

{[%evp 9,81,0,0,0,0,0,0,-10,-8,-14,0,0,0,0,0,0,43,29,29,31,40,30,37,32,63,60,72,58,71,63,73,105,111,111,109,109,117,109,114,81,103,95,167,160,172,181,164,152,152,135,125,125,290,298,379,343,396,387,531,528,1083,1004,866,850,1775,1607,29972,29973,29973,29974,29966,29967,29981,29982]} 1. e4 {[%emt 0:00:09]} c6 {[%emt 0:00:46]} 2. d4 {[%emt 0:00:04]} d5 {[%emt 0:00:14]} 3. e5 {[%emt 0:00:06]} c5 {[%emt 0:00:16]} 4. Nf3 {[%emt 0:00:05]} cxd4 {[%emt 0:00:22]} 5. Qxd4 {[%emt 0:00:04]} Nc6 {[%emt 0:00:41][%cal Bb8c6,Bc6b4,Bb4d3][%mdl 32]} 6. Qf4 {[%emt 0:00:04] B12: Caro-Kann: Advance Variation.} e6 {[%emt 0:00:58]} 7. Bd3 {[%emt 0:00:15]} (7. Ng5 f6 8. Nf3 (8. exf6 $2 gxf6 9. Nxe6 Bxe6 $19) 8... fxe5 9. Nxe5 Nf6 $15) 7... Nb4 {[%emt 0:04:15]} 8. Bd2 {[%emt 0:00:05] The position is equal.} Nxd3+ {[%emt 0:14:08]} 9. cxd3 {[%emt 0:00:55] [#]} h6 $146 {[%emt 0:05:29]} ({Predecessor:} 9... Nh6 10. O-O Be7 11. Bb4 O-O 12. Bxe7 Qxe7 13. Nc3 Bd7 14. a3 Nf5 15. Rac1 Rac8 {1-0 Handke,F (2526)-Zelcic,R (2495) Bundesliga 2223 2022 (1.7)}) 10. h4 {[%emt 0:09:34][%cal Bh2h4,Bh4h5][%mdl 32]} Bd7 {[%emt 0:03:32]} 11. h5 {[%emt 0:09:00]} Qb6 {[%emt 0:10:08]} 12. Nc3 {[%emt 0:02:36]} Qa6 {[%emt 0:09:25]} 13. Ke2 {[%emt 0:01:32]} Ne7 {[%emt 0:02:46]} 14. a4 {[%emt 0:13:02]} g5 {[%emt 0:06:35]} 15. hxg6 {[%emt 0:02:24]} Nxg6 {[%emt 0:00:25]} 16. Qd4 {[%emt 0:03:06][%cal Oc3b5]} Qb6 {[%emt 0:12:20] Prevents Nb5} 17. Qxb6 {[%emt 0:01:12]} axb6 {[%emt 0:00:05]} 18. Be3 {[%emt 0:09:35]} h5 {[%emt 0:07:54]} 19. Nb5 {[%emt 0:02:31] White is more active.} (19. Bxb6 Nf4+ 20. Kd2 Nxg2 $11) 19... Bxb5 {[%emt 0:04:59]} 20. axb5 {[%emt 0:00:04]} Rxa1 {[%emt 0:01:17]} 21. Rxa1 {[%emt 0:00:01]} Kd7 {[%emt 0:00:27]} 22. Bxb6 {[%emt 0:01:33] Strongly threatening Ra7.} Nf4+ {[%emt 0:01:28]} 23. Kf1 {[%emt 0:00:25] aiming for Ra7.} Be7 {[%emt 0:01:15]} 24. Ne1 {[%emt 0:03:39]} h4 {[%emt 0:01:55]} 25. Ra7 {[%emt 0:04:41]} Rb8 {[%emt 0:00:02] [#]} (25... h3 $16 {keeps fighting.} 26. Kg1 (26. Rxb7+ Kc8 $11) 26... hxg2 27. Nxg2 (27. Rxb7+ Kc8 $17) 27... Ne2+ 28. Kf1 Nc1) 26. d4 $1 $18 {[%emt 0:01:24]} f6 {[%emt 0:04:56]} 27. g3 {[%emt 0:01:08]} hxg3 {[%emt 0:00:57]} 28. fxg3 {[%emt 0:00:07]} Ng6 {[%emt 0:00:21]} 29. exf6 {[%emt 0:00:27]} Bxf6 {[%emt 0:00:02]} 30. Nd3 {[%emt 0:00:16]} Ne7 $2 {[%emt 0:04:39] Loses the game.} (30... e5 $16 {was necessary.} 31. Nc5+ Kc8) 31. Nc5+ {[%emt 0:00:57][%mdl 64] [#] Deflection} Kc8 {[%emt 0:01:13]} 32. Nxe6 {[%emt 0:00:39]} Kd7 {[%emt 0:00:01]} 33. Nc5+ {[%emt 0:00:49]} Kc8 {[%emt 0:00:16]} 34. Ra1 {[%emt 0:03:36] Re1 would be deadly.} Bxd4 {[%emt 0:00:32]} 35. Re1 {[%emt 0:00:09]} Bxc5 {[%emt 0:01:39]} 36. Bxc5 {[%emt 0:00:09] KRB-KRN} Nf5 {[%emt 0:00:11]} 37. Ba7 {[%emt 0:00:12] Black must now prevent Rc1+.} Nd6 {[%emt 0:01:14]} 38. Rc1+ {[%emt 0:00:37] White mates.} Nc4 {[%emt 0:00:10]} 39. Bxb8 {[%emt 0:00:07]} Kxb8 {[%emt 0:00:07]} 40. Ke2 {[%emt 0:00:49]} Nd6 {[%emt 0:00:11]} 41. b6 {[%emt 0:00:35] Weighted Error Value: White=0.02 (flawless) /Black=0.42} 1-0

[Event "SixDays Budapest January-GM 2023"]
[Site "Budapest"]
[Date "2023.01.26"]
[Round "6.2"]
[White "Berczes, David"]
[Black "Can, Isik"]
[Result "0-1"]
[ECO "A06"]
[WhiteElo "2436"]
[BlackElo "2488"]
[Annotator "TA"]
[PlyCount "70"]
[EventDate "2023.01.23"]
[EventType "tourn"]
[EventCountry "HUN"]
[SourceTitle "playchess.com"]
[Source "ChessBase"]
[SourceQuality "1"]
[TimeControl "5400+30"]

{[%evp 10,70,25,43,38,47,51,41,48,14,26,31,72,72,70,79,105,120,117,105,120,121,131,116,112,114,132,121,396,391,392,397,456,448,498,498,494,480,842,808,1292,1260,1385,1363,1517,1517,1413,1410,1389,685,639,627,601,-810,-761,-628,-903,-971,-942,-1164,-1102,-1030,-1023]} 1. Nf3 {[%emt 0:13:03]} d5 {[%emt 0:00:06]} 2. g3 {[%emt 0:00:32]} Nf6 {[%emt 0:00:14]} 3. Bg2 {[%emt 0:00:05]} Bf5 {[%emt 0:00:10]} 4. O-O {[%emt 0:00:38]} c6 {[%emt 0:00:41]} 5. d3 {[%emt 0:01:02]} h6 {[%emt 0:00:56]} 6. c4 {[%emt 0:01:37]} dxc4 {[%emt 0:00:08] A07: Réti Opening: New York and Capablanca Systems.} 7. Ne5 {[%emt 0:13:35]} Qc8 {[%emt 0:23:10]} 8. Nxc4 {[%emt 0:05:05]} Bh3 {[%emt 0:01:02] White is slightly better.} 9. Qb3 {[%emt 0:07:49] Bxh3 is the strong threat.} Bxg2 {[%emt 0:01:33]} 10. Kxg2 {[%emt 0:00:09] [#]} c5 $146 {[%emt 0:01:15]} ({Predecessor:} 10... Nbd7 11. e4 Nc5 12. Qc2 h5 13. h4 Ne6 14. Nbd2 Nf4+ 15. Kg1 Qh3 16. gxf4 Qg4+ {½-½ Bukal,V (2387)-Sahil,T (2131) Zadar op-A 2017 (3)}) 11. Nc3 {[%emt 0:24:39]} (11. Ne5 e6 $11) 11... Nc6 {[%emt 0:02:22]} 12. Be3 {[%emt 0:00:05]} e6 {[%emt 0:07:12]} 13. Ne4 $1 {[%emt 0:17:26]} Nxe4 {[%emt 0:19:11]} 14. dxe4 {[%emt 0:00:16]} b6 {[%emt 0:00:45]} 15. Qb5 $1 {[%emt 0:08:18] Black must now prevent Ne5.} a6 {[%emt 0:15:54]} 16. Qb3 {[%emt 0:00:03]} (16. Qxb6 $2 Rb8 $19) 16... Rb8 {[%emt 0:00:03]} 17. Bf4 $1 $36 {[%emt 0:00:15][%mdl 2048] White is in control.} (17. Nxb6 Qd8 18. Rac1 Rxb6 $17) 17... Rb7 {[%emt 0:00:03]} 18. Rfd1 {[%emt 0:01:18]} (18. Nxb6 $2 Qd8 19. Rfd1 Qxb6 $19) 18... Nd4 $2 {[%emt 0:00:16][%mdl 8192] [#]} (18... b5 $16 {keeps fighting.}) 19. Rxd4 $1 $18 {[%emt 0:01:33][%mdl 512]} cxd4 {[%emt 0:00:21]} 20. Rc1 {[%emt 0:00:05]} Qd8 {[%emt 0:11:13] Wards off Nd6+} 21. Qa4+ {[%emt 0:00:19]} Qd7 {[%emt 0:01:27]} 22. Qxa6 {[%emt 0:00:32]} Ra7 {[%emt 0:02:17]} 23. Qxb6 {[%emt 0:00:08] aiming for Qb8+.} Rb7 {[%emt 0:00:30] Repels Qb8+} (23... Qb7 $142 24. Qxd4 f6) 24. Qa6 {[%emt 0:01:07] Hoping for Ne5.} Ra7 {[%emt 0:00:02] [#]} 25. Nd6+ $1 {[%emt 0:01:48]} Bxd6 {[%emt 0:01:53]} 26. Rc8+ {[%emt 0:00:02]} Ke7 {[%emt 0:00:17]} 27. Bxd6+ {[%emt 0:01:39]} (27. Rxh8 $2 Rxa6 28. Bxd6+ Qxd6 $19) 27... Kf6 {[%emt 0:00:00] Black is weak on the dark squares} 28. e5+ (28. Rxh8 $2 {too greedy.} Rxa6 29. Ba3 d3 30. exd3 Qxd3 31. e5+ Kxe5 $19) 28... Kg5 29. h4+ {[%emt 0:01:16]} (29. Rxh8 $2 {loses.} Rxa6 30. Rg8 Kg6 $19) (29. f4+ $142 Kh5 30. Qd3 Qxc8 31. h3 Qc6+ 32. Kf2) 29... Kh5 {[%emt 0:00:23] [#]} 30. Qd3 {[%emt 0:00:26]} Rxc8 {[%emt 0:00:02]} 31. g4+ $4 {[%emt 0:00:39][%mdl 8192]} (31. f3 $18 f6 32. exf6 Qxd6 33. Kh3 Qxg3+ 34. Kxg3 gxf6 35. Qxd4 Rg8+ 36. Kf2) 31... Kxg4 $19 {[%emt 0:05:44] Black is clearly winning.} ({Inferior is} 31... Kxh4 32. Qh3+ Kg5 33. Qh5+ Kf4 34. Qh2+ Kg5 35. Qh5+ Kf4 36. Qh2+ Kg5 37. Qh5+ $11) 32. Qe4+ {[%emt 0:00:30]} Kh5 {[%emt 0:00:03][%cal Bg4h5,Bh5g6,Bg6f7][%mdl 32]} 33. Qf3+ {[%emt 0:00:30]} Kg6 {[%emt 0:00:46]} 34. Qd3+ {[%emt 0:00:30]} f5 {[%emt 0:00:16]} 35. exf6+ {[%emt 0:00:03]} Kf7 {[%emt 0:00:13] What a bad dream for White.   Weighted Error Value: White=0.58/Black=0.26 (precise)} 0-1